bitfinex/quotes_SOLUSD_20250901
["timestamp","ask_amount","ask_price","bid_price","bid_amount"]
[1756762945965,7.0557039,195.32,195.26,0.71]
[1756762946373,7.0557039,195.33,195.26,0.71]
[1756762946755,7.0557039,195.33,195.27,5.12111435]
[1756762946958,7.0557039,195.34,195.28,13.59559401]
[1756762947771,7.0557039,195.34,195.28,14.30559401]
[1756762948151,0.69,195.36,195.28,14.30559401]
[1756762948347,7.0557039,195.34,195.28,14.30559401]
[1756762948782,7.0557039,195.34,195.29,5.12058989]
[1756762948952,0.03,195.38,195.31,13.59559401]
[1756762949153,7.0557039,195.36,195.31,13.59559401]
[1756762949453,0.03,195.38,195.32,0.71]
[1756762949653,7.0557039,195.35,195.29,5.12058989]
[1756762949863,7.0557039,195.33,195.29,5.12058989]
[1756762950261,5.14826131,195.38,195.29,5.12058989]
[1756762950455,7.0557039,195.32,195.26,13.59559401]
[1756762950883,7.0557039,195.31,195.26,18.71697063]
[1756762951286,0.69,195.33,195.26,19.42697063]
[1756762951486,7.0557039,195.31,195.26,19.42697063]
[1756762952078,7.0557039,195.3,195.24,13.59559401]
[1756762952484,7.0557039,195.29,195.24,13.59559401]
[1756762952686,7.0557039,195.29,195.24,14.30559401]
[1756762952896,7.0557039,195.27,195.23,5.1221636]
[1756762953201,7.0557039,195.26,195.23,5.1221636]
[1756762953382,7.0557039,195.26,195.21,13.59559401]
[1756762953579,0.69,195.25,195.19,0.12]
[1756762953782,7.0557039,195.23,195.19,5.24321077]
[1756762954299,7.7457039,195.23,195.19,5.24321077]
[1756762954668,7.7457039,195.23,195.19,0.12]
[1756762955189,0.69,195.22,195.19,0.12]
[1756762955368,7.7457039,195.22,195.19,0.12]
[1756762955569,7.0557039,195.2,195.19,0.12]
[1756762955791,0.69,195.21,195.18,0.12]
[1756762955995,7.0557039,195.19,195.16,0.12]
[1756762956196,7.0557039,195.17,195.16,0.12]
[1756762956406,7.0557039,195.15,195.14,0.12]
[1756762956699,7.7457039,195.15,195.14,0.12]
[1756762956871,0.69,195.15,195.14,0.12]
[1756762957074,5.81426338,195.15,195.14,0.12]
[1756762957286,12.86996728,195.15,195.14,0.12]
[1756762957595,16.58104724,195.15,195.14,0.12]
[1756762957894,20.65129791,195.11,195.1,0.12]
[1756762958069,26.0,195.09,195.08,0.12]
[1756762958270,33.0557039,195.09,195.01,0.31530082]
[1756762958483,7.0557039,195.02,195.01,0.31530082]
[1756762958908,26.69,195.08,195.01,0.31530082]
[1756762959193,26.69,195.08,195.01,1.02530082]
[1756762959395,7.0557039,195.04,195.0,802.3]
[1756762959567,7.0557039,195.04,195.0,807.42816863]
[1756762959770,7.0557039,195.04,195.0,802.3]
[1756762959771,7.0557039,195.03,195.0,802.3]
[1756762959982,26.0,195.07,195.0,802.3]
[1756762960195,7.0557039,195.03,195.0,802.3]
[1756762960395,7.7457039,195.02,195.0,802.3]
[1756762960773,7.0557039,195.02,195.0,802.3]
[1756762960979,26.0,195.07,195.0,802.3]
[1756762961177,5.87455186,195.16,195.0,807.42810552]
[1756762961387,7.0557039,195.11,195.03,26.0]
[1756762961599,6.56455186,195.21,195.05,13.59559401]
[1756762961773,7.0557039,195.12,195.06,0.71]
[1756762961969,7.0557039,195.12,195.06,7.7657039]
[1756762962173,7.0557039,195.12,195.07,0.71]
[1756762962402,7.0557039,195.13,195.08,0.71]
[1756762962608,54.65,195.18,195.09,5.83568832]
[1756762962609,7.0557039,195.12,195.09,5.83568832]
[1756762962786,7.0557039,195.12,195.1,0.71]
[1756762963910,7.0557039,195.14,195.11,0.71]
[1756762964275,7.0557039,195.14,195.09,5.12568832]
[1756762964473,59.75348258,195.18,195.1,0.71]
[1756762964677,0.69,195.24,195.11,5.12531392]
[1756762964908,0.69,195.24,195.13,13.59559401]
[1756762964909,5.81192892,195.24,195.13,13.59559401]
[1756762965106,7.0557039,195.19,195.14,0.71]
[1756762965407,7.0557039,195.19,195.15,0.71]
[1756762965584,7.0557039,195.19,195.16,0.71]
[1756762965779,59.87198005,195.24,195.16,0.71]
[1756762966005,7.0557039,195.2,195.12,13.59559401]
[1756762966217,7.0557039,195.19,195.17,0.71]
[1756762966411,7.0557039,195.19,195.15,0.71]
[1756762966614,7.0557039,195.19,195.13,7.0557039]
[1756762966823,7.0557039,195.19,195.16,0.71]
[1756762967803,7.0557039,195.19,195.13,7.0557039]
[1756762968129,10.66792929,195.19,195.15,0.71]
[1756762968335,10.66792929,195.19,195.16,0.71]
[1756762968629,53.96,195.23,195.16,0.71]
[1756762968630,53.92,195.23,195.16,0.71]
[1756762968829,87.28617094,195.25,195.16,5.83398077]
[1756762969023,61.28617094,195.25,195.16,5.83398077]
[1756762969343,53.94,195.25,195.17,11.37792929]
[1756762969523,0.69,195.29,195.18,0.71]
[1756762969724,10.66792929,195.25,195.19,10.66792929]
[1756762969899,0.69,195.29,195.15,26.0]
[1756762969900,0.69,195.29,195.2,0.71]
[1756762970099,10.66792929,195.25,195.2,0.71]
[1756762970622,0.69,195.29,195.2,0.71]
[1756762970936,54.0,195.28,195.21,5.12268838]
[1756762971101,10.66792929,195.26,195.21,5.12268838]
[1756762971297,10.66792929,195.27,195.21,15.79061767]
[1756762971497,6.65617094,195.3,195.22,11.37792929]
[1756762971498,10.66792929,195.28,195.22,11.37792929]
[1756762972124,10.66792929,195.29,195.22,11.37792929]
[1756762972506,10.66792929,195.28,195.22,11.37792929]
[1756762972723,10.66792929,195.28,195.23,5.1221636]
[1756762973042,10.66792929,195.28,195.24,0.71]
[1756762973335,10.66792929,195.28,195.23,5.1221636]
[1756762973336,11.35792929,195.28,195.23,5.1221636]
[1756762973540,10.66792929,195.27,195.23,5.1221636]
[1756762974116,10.66792929,195.27,195.23,5.8321636]
[1756762974544,26.0,195.29,195.23,5.8321636]
[1756762974915,10.66792929,195.27,195.23,5.8321636]
[1756762975454,10.66792929,195.27,195.23,5.1221636]
[1756762975628,10.66792929,195.24,195.18,5.12347576]
[1756762975831,10.66792929,195.22,195.18,5.12347576]
[1756762976030,0.69,195.26,195.18,16.50140505]
[1756762976230,10.66792929,195.19,195.13,10.66792929]
[1756762976551,10.66792929,195.2,195.14,10.66792929]
[1756762976927,26.0,195.22,195.16,10.66792929]
[1756762977155,36.66792929,195.22,195.16,10.66792929]
[1756762977349,0.6,195.25,195.17,5.12373827]
[1756762977646,10.66792929,195.22,195.17,0.71]
[1756762977819,10.66792929,195.23,195.18,0.71]
[1756762979034,26.0,195.24,195.18,5.12347576]
[1756762979235,10.66792929,195.23,195.18,5.12347576]
[1756762979549,10.66792929,195.23,195.19,0.71]
[1756762980049,10.66792929,195.24,195.18,15.79140505]
[1756762980222,5.1501061,195.31,195.2,0.71]
[1756762980430,10.66792929,195.25,195.2,0.71]
[1756762980628,10.66792929,195.25,195.21,0.71]
[1756762981219,10.66792929,195.25,195.22,5.12242598]
[1756762982131,26.0,195.29,195.22,5.12242598]
[1756762982455,10.66792929,195.28,195.23,0.71]
[1756762982937,10.66792929,195.28,195.22,15.79035527]
[1756762982938,10.66792929,195.28,195.24,0.71]
[1756762983337,10.66792929,195.28,195.25,5.12163892]
[1756762983543,10.66792929,195.26,195.2,10.66792929]
[1756762983733,26.0,195.29,195.21,0.71]
[1756762983935,10.66792929,195.27,195.21,0.71]
[1756762985247,10.66792929,195.22,195.21,0.12]
[1756762985452,10.66792929,195.23,195.21,0.12]
[1756762985654,10.66792929,195.24,195.21,0.12]
[1756762985834,0.03,195.25,195.21,0.12]
[1756762986035,10.66792929,195.24,195.21,0.12]
[1756762986560,0.03,195.25,195.21,0.12]
[1756762986750,10.66792929,195.23,195.21,0.12]
[1756762987137,10.66792929,195.22,195.21,0.12]
[1756762987333,26.63,195.25,195.21,0.12]
[1756762987538,10.66792929,195.22,195.21,0.12]
[1756762987950,33.0678248,195.22,195.21,0.12]
[1756762988329,0.03,195.25,195.21,0.12]
[1756762988662,7.0678248,195.23,195.21,0.12]
[1756762989534,7.0678248,195.22,195.21,0.12]
[1756762990730,7.6678248,195.22,195.21,0.12]
[1756762990931,33.6678248,195.22,195.21,0.12]
[1756762991148,12.79025078,195.22,195.21,0.12]
[1756762991357,7.0678248,195.24,195.21,0.12]
[1756762991358,0.6,195.24,195.21,0.12]
[1756762991745,0.03,195.25,195.21,0.12]
[1756762992055,7.0678248,195.22,195.21,0.12]
[1756762994256,12.19025078,195.22,195.21,0.12]
[1756762994557,7.0678248,195.22,195.21,0.12]
[1756762994751,12.19025078,195.22,195.21,0.12]
[1756762994950,0.03,195.25,195.21,0.82]
[1756762995155,7.0678248,195.24,195.22,0.7]
[1756762995370,7.0678248,195.23,195.22,0.7]
[1756762995660,7.0678248,195.24,195.22,0.7]
[1756762996255,7.0678248,195.23,195.21,0.12]
[1756762996439,7.0678248,195.24,195.21,0.82]
[1756762996641,7.0678248,195.24,195.22,0.7]
[1756762997066,0.03,195.25,195.22,0.7]
[1756762997272,7.0678248,195.24,195.22,0.7]
[1756762998565,0.03,195.25,195.22,0.7]
[1756762998737,7.0678248,195.24,195.22,0.7]
[1756762999270,0.03,195.25,195.23,0.7]
[1756762999446,7.0678248,195.24,195.21,0.82]
[1756762999645,7.0678248,195.24,195.22,0.7]
[1756762999879,5.15172177,195.25,195.22,0.7]
[1756763000047,7.0678248,195.24,195.22,0.7]
[1756763000251,7.0678248,195.24,195.21,0.12]
[1756763000768,7.0678248,195.24,195.21,0.82]
[1756763001147,0.03,195.25,195.22,0.7]
[1756763001377,7.0678248,195.24,195.22,0.7]
[1756763001753,7.0978248,195.25,195.21,0.12]
[1756763002074,7.0978248,195.25,195.22,0.7]
[1756763002375,0.03,195.25,195.22,0.7]
[1756763002576,7.0978248,195.25,195.22,0.7]
[1756763003577,12.21955268,195.25,195.22,0.7]
[1756763003782,12.21955268,195.25,195.21,0.12]
[1756763003986,7.0678248,195.22,195.21,0.12]
[1756763004271,10.41319042,195.22,195.21,0.12]
[1756763004458,29.94536562,195.22,195.21,0.12]
[1756763004777,90.97319042,195.22,195.21,0.12]
[1756763005065,64.37319042,195.22,195.21,0.12]
[1756763005373,10.41319042,195.22,195.21,0.12]
[1756763005553,11.01319042,195.22,195.21,0.12]
[1756763005742,16.1356164,195.22,195.21,0.12]
[1756763006652,3.34536562,195.22,195.21,0.12]
[1756763006949,7.0678248,195.22,195.21,0.12]
[1756763007179,10.42704369,195.22,195.21,0.12]
[1756763007768,11.02704369,195.22,195.21,0.12]
[1756763007959,21.25971652,195.22,195.21,0.12]
[1756763008153,77.23410652,195.22,195.21,0.12]
[1756763008352,81.41017077,195.22,195.21,0.12]
[1756763008551,83.10865838,195.22,195.2,0.12]
[1756763008748,17.08321463,195.21,195.2,0.12]
[1756763008963,43.08321463,195.21,195.2,0.12]
[1756763009279,5.12295081,195.2,195.09,7.0678248]
[1756763009495,7.0678248,195.16,195.09,7.0678248]
[1756763009653,3.35921889,195.15,195.09,7.0678248]
[1756763009850,3.35921889,195.15,195.09,12.19362624]
[1756763010261,7.0678248,195.14,195.09,5.12580144]
[1756763010558,0.7,195.13,195.05,13.59559401]
[1756763010755,7.0678248,195.13,195.06,7.0678248]
[1756763010979,7.0678248,195.13,195.08,13.59559401]
[1756763011180,7.0678248,195.12,195.08,13.59559401]
[1756763011363,7.0678248,195.12,195.09,0.7]
[1756763011564,5.12440954,195.15,195.09,0.7]
[1756763011763,3.35879299,195.14,195.09,0.7]
[1756763011958,7.0678248,195.13,195.09,0.7]
[1756763013186,54.94,195.17,195.1,0.7]
[1756763013387,7.0678248,195.15,195.1,0.7]
[1756763013568,7.0678248,195.14,195.11,0.7]
[1756763014067,4.42095363,195.14,195.11,0.7]
[1756763014978,54.22,195.16,195.11,0.7]
[1756763015290,4.42095363,195.14,195.08,23.14260441]
[1756763015465,4.42095363,195.14,195.09,0.66]
[1756763015665,4.42095363,195.14,195.1,0.66]
[1756763015969,4.42095363,195.14,195.11,0.66]
[1756763016491,4.42095363,195.13,195.11,0.66]
[1756763017176,4.42095363,195.12,195.11,0.66]
[1756763017377,5.12455656,195.14,195.11,0.66]
[1756763017584,4.42095363,195.13,195.11,0.66]
[1756763018108,59.14407119,195.16,195.11,0.66]
[1756763018268,4.42095363,195.13,195.11,0.66]
[1756763018588,5.81407119,195.16,195.11,0.66]
[1756763018815,4.42095363,195.13,195.11,0.66]
[1756763019364,4.42095363,195.12,195.11,0.66]
[1756763019986,4.42095363,195.12,195.08,5.78606128]
[1756763020169,4.42095363,195.12,195.09,0.66]
[1756763020373,4.42095363,195.12,195.1,0.66]
[1756763020574,5.12457426,195.14,195.1,0.66]
[1756763020772,4.42095363,195.12,195.1,0.66]
[1756763021089,5.12457426,195.14,195.11,0.66]
[1756763021289,54.55,195.16,195.11,0.66]
[1756763021470,4.42095363,195.12,195.09,5.78577753]
[1756763021671,4.42095363,195.12,195.1,0.66]
[1756763021870,4.42095363,195.12,195.09,5.12577753]
[1756763022068,0.69,195.16,195.1,0.66]
[1756763022273,4.42095363,195.12,195.1,0.66]
[1756763022583,5.81402159,195.16,195.1,0.66]
[1756763022783,4.42095363,195.12,195.1,0.66]
[1756763022987,4.42095363,195.11,195.1,0.66]
[1756763023169,4.42095363,195.11,195.07,5.12636489]
[1756763023591,4.42095363,195.11,195.08,0.66]
[1756763024098,0.69,195.1,195.05,13.59559401]
[1756763024302,5.12403815,195.16,195.03,0.66]
[1756763024303,4.42095363,195.07,195.03,0.66]
[1756763024592,4.42095363,195.07,195.04,0.78]
[1756763024773,4.42095363,195.07,195.04,0.12]
[1756763025300,4.42095363,195.07,195.04,0.78]
[1756763026192,4.42095363,195.06,195.04,0.12]
[1756763026578,4.42095363,195.05,195.04,0.12]
[1756763026893,5.11095363,195.05,195.04,0.12]
[1756763027299,26.0,195.1,195.04,0.12]
[1756763027594,4.42095363,195.05,195.04,0.12]
[1756763027804,0.69,195.07,195.04,0.12]
[1756763028112,4.42095363,195.05,195.04,0.12]
[1756763028487,5.11095363,195.05,195.04,0.12]
[1756763029310,10.23784417,195.05,195.04,0.12]
[1756763029881,64.45784417,195.05,195.04,0.12]
[1756763030084,10.30505093,195.05,195.04,0.12]
[1756763030986,15.43194147,195.05,195.04,0.12]
[1756763031186,10.30505093,195.05,195.04,0.12]
[1756763031388,15.43194147,195.05,195.04,0.12]
[1756763032414,95.61194147,195.05,195.04,0.12]
[1756763032602,105.60966163,195.05,195.04,0.12]
[1756763032908,86.06921349,195.05,195.04,0.12]
[1756763033516,31.62921349,195.05,195.04,0.12]
[1756763033718,85.47921349,195.05,195.04,0.12]
[1756763034018,19.61901738,195.09,195.04,0.78]
[1756763034019,133.8,195.06,195.04,0.78]
[1756763034222,4.42095363,195.07,195.04,0.12]
[1756763034508,4.42095363,195.07,195.04,0.78]
[1756763034711,68.09173682,195.11,195.05,0.66]
[1756763034894,4.42095363,195.07,195.05,0.66]
[1756763035275,68.09173682,195.11,195.05,0.66]
[1756763035513,4.42095363,195.07,195.05,0.66]
[1756763036024,4.42095363,195.08,195.05,0.66]
[1756763036229,4.42095363,195.07,195.05,0.66]
[1756763036596,4.42095363,195.08,195.05,0.66]
[1756763037026,4.42095363,195.1,195.06,0.66]
[1756763037606,11.07712457,195.11,195.07,5.12636489]
[1756763037811,11.07712457,195.11,195.08,0.66]
[1756763038008,4.42095363,195.11,195.08,0.66]
[1756763038214,4.42095363,195.11,195.09,0.66]
[1756763038718,4.42095363,195.12,195.1,0.66]
[1756763038911,4.42095363,195.12,195.11,0.66]
[1756763039809,0.03,195.13,195.11,0.66]
[1756763040001,4.42095363,195.12,195.11,0.66]
[1756763040201,0.03,195.13,195.11,0.66]
[1756763040431,4.42095363,195.12,195.11,0.66]
[1756763041328,4.45095363,195.13,195.11,0.66]
[1756763041899,4.45095363,195.13,195.12,0.66]
[1756763042730,0.03,195.13,195.12,0.66]
[1756763048906,0.03,195.13,195.12,5.78505125]
[1756763049123,0.03,195.13,195.12,0.66]
[1756763054610,0.03,195.13,195.12,14.25559401]
[1756763055728,0.03,195.13,195.12,13.59559401]
[1756763057136,0.03,195.13,195.11,13.59559401]
[1756763057648,0.03,195.13,195.11,14.25559401]
[1756763060721,0.03,195.13,195.12,0.66]
[1756763061056,0.03,195.13,195.12,14.25559401]
[1756763062030,4.45095363,195.13,195.12,13.59559401]
[1756763062228,5.16095363,195.13,195.12,13.59559401]
[1756763062448,0.74,195.13,195.12,13.59559401]
[1756763062951,4.45095363,195.13,195.12,13.59559401]
[1756763063328,5.1547886,195.13,195.12,13.59559401]
[1756763063523,0.03,195.13,195.12,13.59559401]
[1756763066738,0.03,195.13,195.12,14.25559401]
[1756763072539,0.03,195.13,195.12,13.59559401]
[1756763073635,0.03,195.13,195.12,18.72064526]
[1756763073854,0.03,195.13,195.12,18.67654764]
[1756763075947,0.03,195.13,195.12,14.25559401]
[1756763076247,0.03,195.13,195.12,13.59559401]
[1756763077262,3.38359987,195.13,195.12,13.59559401]
[1756763077471,7.8045535,195.13,195.12,13.59559401]
[1756763078342,3.38359987,195.13,195.12,14.30559401]
[1756763078552,0.03,195.13,195.12,14.30559401]
[1756763079245,0.03,195.13,195.12,13.59559401]
[1756763079550,3.38359987,195.13,195.12,13.59559401]
[1756763079751,4.45095363,195.13,195.12,13.59559401]
[1756763079951,7.8045535,195.13,195.12,13.59559401]
[1756763080390,8.5045535,195.13,195.12,13.59559401]
[1756763080680,8.5045535,195.13,195.08,13.59559401]
[1756763080851,4.42095363,195.1,195.07,13.59559401]
[1756763081054,4.42095363,195.09,195.07,13.59559401]
[1756763081249,4.42095363,195.08,195.07,13.59559401]
[1756763081563,7.78300018,195.08,195.07,13.59559401]
[1756763081887,7.78300018,195.08,195.04,53.75]
[1756763082176,4.42095363,195.08,195.05,14.30559401]
[1756763082351,4.42095363,195.08,195.05,13.59559401]
[1756763082553,3.36200535,195.07,195.04,66.59559401]
[1756763082754,5.12608509,195.09,195.04,66.59559401]
[1756763082982,5.12608509,195.09,195.05,0.71]
[1756763082983,4.42095363,195.08,195.05,0.71]
[1756763083273,5.1266277,195.06,195.04,66.59559401]
[1756763084261,5.1266277,195.06,195.04,13.71559401]
[1756763084577,5.1266277,195.06,195.04,0.12]
[1756763084755,5.12095363,195.05,195.04,0.12]
[1756763084959,8.47906155,195.05,195.04,0.12]
[1756763085371,13.60595209,195.05,195.04,0.12]
[1756763087978,26.0,195.03,195.02,1e-08]
[1756763088188,33.77906155,195.03,195.0,775.37069559]
[1756763088497,4.05810792,195.02,195.0,748.87104633]
[1756763088686,0.7,195.01,195.0,748.87104633]
[1756763088891,5.12095363,195.01,195.0,748.87104633]
[1756763089089,8.47906155,195.01,195.0,748.87104633]
[1756763089290,5.12095363,195.01,195.0,748.87104633]
[1756763089498,10.24889578,195.01,195.0,748.87104633]
[1756763089823,13.58959094,195.01,195.0,748.87104633]
[1756763090165,10.24889578,195.01,195.0,748.87104633]
[1756763090782,5.82794215,195.01,195.0,748.87104633]
[1756763090975,10.24889578,195.01,195.0,748.87104633]
[1756763092192,0.7,195.01,195.0,748.87104633]
[1756763092494,5.12095363,195.03,195.0,748.87104633]
[1756763092691,0.7,195.02,195.0,748.87104633]
[1756763092913,4.42095363,195.03,195.0,748.87104633]
[1756763092914,0.7,195.01,195.0,748.87104633]
[1756763093077,5.12095363,195.04,195.0,748.87104633]
[1756763093268,4.42095363,195.04,195.0,748.87104633]
[1756763093468,5.12095363,195.03,195.0,748.87104633]
[1756763093868,57.68693074,195.05,195.0,748.87104633]
[1756763093869,5.12693074,195.05,195.0,748.87104633]
[1756763094106,4.42095363,195.04,195.0,748.87104633]
[1756763094409,4.42095363,195.04,195.0,749.58104633]
[1756763094588,9.54819129,195.04,195.0,749.58104633]
[1756763094784,9.54819129,195.04,195.0,748.87104633]
[1756763095001,5.12691044,195.05,195.01,0.71]
[1756763095173,5.12691044,195.05,195.0,748.87104633]
[1756763095374,10.24786407,195.05,195.0,749.58104633]
[1756763095599,9.54786407,195.05,195.01,0.71]
[1756763095974,4.42095363,195.05,195.01,0.71]
[1756763096175,4.42095363,195.05,195.02,0.71]
[1756763096498,4.42095363,195.03,195.0,748.87104633]
[1756763096697,4.42095363,195.01,195.0,748.87104633]
[1756763096995,0.7,195.01,195.0,748.87104633]
[1756763097610,31.12095363,195.04,195.0,748.87104633]
[1756763097798,0.7,195.03,195.0,748.87104633]
[1756763098099,5.12767921,195.02,195.0,748.87104633]
[1756763098894,0.7,195.01,195.0,748.87104633]
[1756763099491,5.12737803,195.04,195.0,749.58104633]
[1756763099675,5.82737803,195.04,195.0,748.87104633]
[1756763099877,9.54833166,195.04,195.0,748.87104633]
[1756763100074,5.12767921,195.02,195.0,748.87104633]
[1756763100494,5.12095363,195.01,195.0,748.87104633]
[1756763101305,0.7,195.01,195.0,748.87104633]
[1756763101512,5.12095363,195.01,195.0,748.87104633]
[1756763102187,10.24889578,195.01,195.0,748.87104633]
[1756763104112,13.57485678,195.01,195.0,748.87104633]
[1756763104681,10.24889578,195.01,195.0,748.87104633]
[1756763104929,13.57476591,195.01,195.0,748.87104633]
[1756763105411,10.24889578,195.01,195.0,748.87104633]
[1756763106136,63.24889578,195.01,195.0,748.87104633]
[1756763108657,58.12095363,195.01,195.0,748.87104633]
[1756763109018,63.24889578,195.01,195.0,748.87104633]
[1756763109241,53.7,195.01,195.0,748.87104633]
[1756763109740,58.12095363,195.01,195.0,748.87104633]
[1756763109917,58.04095363,195.01,195.0,748.87104633]
[1756763110117,10.24889578,195.01,195.0,748.87104633]
[1756763110320,63.22889578,195.01,195.0,748.87104633]
[1756763110519,63.22889578,195.01,195.0,722.91998173]
[1756763112830,58.80794215,195.01,195.0,722.91998173]
[1756763113022,5.12095363,195.01,195.0,722.91998173]
[1756763113219,58.38095363,195.01,195.0,722.91998173]
[1756763113425,5.12095363,195.01,195.0,722.91998173]
[1756763113852,85.28794215,195.01,195.0,722.91998173]
[1756763114044,89.68889578,195.01,195.0,722.91998173]
[1756763114555,89.67889578,195.01,195.0,722.91998173]
[1756763114932,31.81794215,195.01,195.0,722.91998173]
[1756763115251,79.4,195.01,195.0,722.91998173]
[1756763115423,84.49095363,195.01,195.0,722.91998173]
[1756763115755,88.91190726,195.01,195.0,722.91998173]
[1756763115949,35.53190726,195.01,195.0,722.91998173]
[1756763116181,84.61095363,195.01,195.0,722.91998173]
[1756763116451,89.73889578,195.01,195.0,722.91998173]
[1756763117039,89.76889578,195.01,195.0,722.91998173]
[1756763117231,36.26889578,195.01,195.0,722.91998173]
[1756763117551,89.76889578,195.01,195.0,722.91998173]
[1756763117963,36.26889578,195.01,195.0,722.91998173]
[1756763118129,89.74889578,195.01,195.0,722.91998173]
[1756763118328,94.16984941,195.01,195.0,722.91998173]
[1756763118663,94.12984941,195.01,195.0,722.91998173]
[1756763118859,68.12984941,195.01,195.0,696.80845496]
[1756763119164,71.45388486,195.01,195.0,670.70787063]
[1756763119331,78.00510169,195.01,195.0,547.49265825]
[1756763119532,74.67988241,195.01,195.0,521.33030198]
[1756763119734,74.67988241,195.01,195.0,495.45568286]
[1756763119935,74.75988241,195.01,195.0,469.67245901]
[1756763120141,74.75988241,195.01,195.0,402.34800185]
[1756763120966,21.23988241,195.01,195.0,402.34800185]
[1756763121256,21.23988241,195.01,195.0,303.28062439]
[1756763121257,84.0768927,195.01,195.0,303.28062439]
[1756763121462,84.0168927,195.01,195.0,303.28062439]
[1756763121762,99.4446267,195.01,195.0,303.28062439]
[1756763121945,99.4846267,195.01,195.0,303.28062439]
[1756763122147,99.4846267,195.01,195.0,209.63999023]
[1756763122351,99.4446267,195.01,195.0,183.93695961]
[1756763122556,45.9846267,195.01,195.0,183.93695961]
[1756763122746,99.4446267,195.01,195.0,129.40568803]
[1756763123130,99.4446267,195.01,195.0,62.08123087]
[1756763123363,45.9846267,195.01,195.0,31.80679215]
[1756763123544,99.4046267,195.01,195.0,31.80679215]
[1756763123864,99.4046267,195.01,195.0,1e-08]
[1756763124070,38.54031504,195.0,194.98,0.12]
[1756763124256,61.10768187,194.99,194.98,0.12]
[1756763124447,15.69522936,194.99,194.98,0.12]
[1756763124759,72.76618299,194.99,194.98,0.12]
[1756763124968,73.45618299,194.99,194.98,0.12]
[1756763125473,21.68551141,194.99,194.98,0.12]
[1756763125639,20.99551141,194.99,194.98,0.12]
[1756763125840,92.10763535,194.99,194.93,0.66]
[1756763126057,26.0,194.96,194.93,0.66]
[1756763126261,53.18,194.95,194.93,0.66]
[1756763126442,9.55087313,194.94,194.91,0.66]
[1756763126772,4.42095363,194.94,194.92,0.66]
[1756763126959,53.12,194.93,194.92,0.66]
[1756763127672,53.08,194.93,194.92,0.66]
[1756763128769,53.02,194.93,194.92,0.66]
[1756763130055,8.59233168,194.94,194.92,0.66]
[1756763130261,52.82,194.93,194.92,0.66]
[1756763130473,4.17137805,194.94,194.93,0.66]
[1756763130642,9.55059259,194.95,194.93,0.66]
[1756763130987,52.74,194.94,194.93,0.66]
[1756763131198,52.74,194.94,194.89,9.7519934]
[1756763131349,56.84406311,194.94,194.9,0.66]
[1756763131848,5.12963896,194.95,194.9,0.66]
[1756763132047,52.68,194.94,194.9,0.66]
[1756763133148,5.12963896,194.95,194.9,0.66]
[1756763133348,9.55059259,194.95,194.9,0.66]
[1756763133546,52.52,194.94,194.9,0.66]
[1756763133760,56.94095363,194.94,194.9,0.66]
[1756763134048,56.94095363,194.94,194.91,0.66]
[1756763134271,52.52,194.94,194.92,0.66]
[1756763134470,56.94095363,194.94,194.89,0.2]
[1756763134776,13.23031505,194.98,194.9,0.66]
[1756763134978,55.80295506,194.97,194.9,0.66]
[1756763135181,3.34295506,194.96,194.9,0.66]
[1756763135392,3.34300143,194.96,194.9,5.08095363]
[1756763135550,4.42095363,194.96,194.91,0.69]
[1756763135747,52.36,194.97,194.91,0.69]
[1756763136089,52.42,194.97,194.91,5.11095363]
[1756763136253,56.84095363,194.97,194.92,0.69]
[1756763136580,52.42,194.96,194.93,0.69]
[1756763136758,52.42,194.96,194.94,0.69]
[1756763137364,6.550033,194.98,194.95,0.69]
[1756763137562,4.45095363,195.01,194.95,0.69]
[1756763137769,3.34469891,195.0,194.95,5.11095363]
[1756763137979,3.34469891,195.0,194.96,0.69]
[1756763138479,7.76565254,195.0,194.96,0.69]
[1756763138697,3.34469891,194.99,194.96,0.69]
[1756763138882,3.34469891,195.0,194.96,0.69]
[1756763139086,7.76565254,195.0,194.96,0.69]